fUST/lending_fUST_20250531
["ID","MTS","AMOUNT","RATE_DAILY","PERIOD"]
[363346494,1748686041096,-418.59864947,0.00015804,2]
[363346495,1748686045094,-748.3839146,0.00015804,2]
[363346496,1748686045116,-152.09961075,0.00015814,2]
[363346497,1748686045137,-168.19204084,0.00015914,2]
[363346498,1748686045159,-5000.0,0.00016,2]
[363346499,1748686045180,-168.19204084,0.00016126,2]
[363346500,1748686045200,-3685.2475892,0.00016285,2]
[363346501,1748686049150,-1143.59315147,0.00016285,2]
[363346502,1748686051095,-2263.44923875,0.00016285,2]
[363346503,1748686051115,-162.0260999,0.00016294,2]
[363346504,1748686051135,-168.19204084,0.00016338,2]
[363346505,1748686051156,-354.18192467,0.00016437,2]
[363346506,1748686149205,-214.15304184,0.00015601,2]
[363346507,1748686173143,-943.8282,0.00015588,2]
[363346544,1748686232414,-125.096299,0.00015588,2]
[363346546,1748686232425,-4.96531216,0.00015601,2]
[363346547,1748686232435,-157.04898683,0.00016338,2]
[363346548,1748686232445,-300.0,0.00016436,2]
[363346549,1748686232456,-300.0,0.00016436,2]
[363346550,1748686232468,-547.0,0.00016436,2]
[363346551,1748686232478,-145.81807533,0.00016437,2]
[363346552,1748686232487,-500.0,0.00016437,2]
[363346553,1748686232499,-500.0,0.00016437,2]
[363346554,1748686232509,-500.0,0.00016437,2]
[363346555,1748686232519,-445.76220143,0.00016437,2]
[363346556,1748686232529,-500.0,0.00016437,2]
[363346557,1748686232539,-500.0,0.00016437,2]
[363346558,1748686232549,-304.51659632,0.00016437,2]
[363346559,1748686232558,-273.48693648,0.00016438,2]
[363346560,1748686232568,-284.86729303,0.00016438,2]
[363346561,1748686232578,-430.0,0.00016438,2]
[363346562,1748686232588,-430.0,0.00016438,2]
[363346563,1748686232598,-430.0,0.00016438,2]
[363346564,1748686232608,-430.0,0.00016438,2]
[363346565,1748686232619,-430.0,0.00016438,2]
[363346566,1748686232628,-430.0,0.00016438,2]
[363346567,1748686232638,-430.0,0.00016438,2]
[363346568,1748686232651,-430.0,0.00016438,2]
[363346569,1748686232660,-437.16978771,0.00016438,2]
[363346570,1748686232671,-430.0,0.00016438,2]
[363346571,1748686232681,-430.0,0.00016438,2]
[363346572,1748686232692,-430.0,0.00016438,2]
[363346573,1748686232703,-430.0,0.00016438,2]
[363346574,1748686232713,-450.0,0.00016438,2]
[363346575,1748686232724,-430.0,0.00016438,2]
[363346576,1748686232734,-451.57301229,0.00016438,2]
[363346577,1748686232746,-430.0,0.00016438,2]
[363346578,1748686232756,-430.0,0.00016438,2]
[363346579,1748686232766,-400.0,0.00016438,2]
[363346580,1748686232777,-430.0,0.00016438,2]
[363346581,1748686232787,-430.0,0.00016438,2]
[363346582,1748686232797,-422.0,0.00016438,2]
[363346583,1748686232808,-412.80301235,0.00016438,2]
[363346584,1748686232817,-430.0,0.00016438,2]
[363346585,1748686232827,-401.78527147,0.00016438,2]
[363346586,1748686232837,-430.0,0.00016438,2]
[363346587,1748686232848,-485.84691417,0.00016438,2]
[363346588,1748686232858,-430.0,0.00016438,2]
[363346589,1748686232868,-400.8738898,0.00016438,2]
[363346590,1748686232878,-510.0,0.00016438,2]
[363346591,1748686232889,-430.0,0.00016438,2]
[363346592,1748686232899,-430.0,0.00016438,2]
[363346593,1748686232909,-430.0,0.00016438,2]
[363346594,1748686232919,-430.0,0.00016438,2]
[363346595,1748686232929,-430.0,0.00016438,2]
[363346596,1748686232938,-430.0,0.00016438,2]
[363346597,1748686232949,-430.0,0.00016438,2]
[363346598,1748686232959,-430.0,0.00016438,2]
[363346599,1748686232968,-430.0,0.00016438,2]
[363346600,1748686232979,-430.0,0.00016438,2]
[363346601,1748686232989,-430.0,0.00016438,2]
[363346602,1748686233002,-430.0,0.00016438,2]
[363346603,1748686233012,-430.0,0.00016438,2]
[363346604,1748686233023,-430.0,0.00016438,2]
[363346605,1748686233033,-430.0,0.00016438,2]
[363346606,1748686233043,-430.0,0.00016438,2]
[363346607,1748686233053,-430.0,0.00016438,2]
[363346608,1748686233064,-500.0,0.00016438,2]
[363346609,1748686233074,-430.0,0.00016438,2]
[363346610,1748686233084,-430.0,0.00016438,2]
[363346611,1748686233094,-440.0,0.00016438,2]
[363346612,1748686233105,-430.0,0.00016438,2]
[363346613,1748686233118,-500.0,0.00016438,2]
[363346614,1748686233131,-430.0,0.00016438,2]
[363346615,1748686233143,-433.50589293,0.00016438,2]
[363346616,1748686233153,-430.0,0.00016438,2]
[363346617,1748686233162,-430.0,0.00016438,2]
[363346618,1748686233174,-430.0,0.00016438,2]
[363346619,1748686233184,-430.0,0.00016438,2]
[363346620,1748686233194,-407.77714249,0.00016438,2]
[363346621,1748686233210,-430.0,0.00016438,2]
[363346622,1748686233219,-430.0,0.00016438,2]
[363346623,1748686233230,-204.7570011,0.00016438,2]
[363346624,1748686233241,-430.0,0.00016438,2]
[363346625,1748686233262,-430.0,0.00016438,2]
[363346626,1748686233274,-430.0,0.00016438,2]
[363346627,1748686233284,-430.0,0.00016438,2]
[363346628,1748686233294,-430.0,0.00016438,2]
[363346629,1748686233304,-430.0,0.00016438,2]
[363346630,1748686233315,-430.0,0.00016438,2]
[363346631,1748686233325,-431.72080702,0.00016438,2]
[363346632,1748686233336,-431.413275,0.00016438,2]
[363346633,1748686233346,-408.41253402,0.00016438,2]
[363346634,1748686233356,-430.0,0.00016438,2]
[363346635,1748686233366,-430.0,0.00016438,2]
[363346636,1748686233376,-430.0,0.00016438,2]
[363346637,1748686233385,-402.70263504,0.00016438,2]
[363346638,1748686233395,-430.0,0.00016438,2]
[363346639,1748686233405,-400.0,0.00016438,2]
[363346640,1748686233415,-430.0,0.00016438,2]
[363346641,1748686233425,-430.0,0.00016438,2]
[363346642,1748686233436,-435.81729814,0.00016438,2]
[363346643,1748686233445,-430.0,0.00016438,2]
[363346644,1748686233455,-430.0,0.00016438,2]
[363346645,1748686233468,-398.63942026,0.00016438,2]
[363346646,1748686233478,-430.0,0.00016438,2]
[363346647,1748686233493,-927.97,0.00016438,2]
[363346648,1748686233504,-430.0,0.00016438,2]
[363346649,1748686233514,-277.62882992,0.00016438,2]
[363346650,1748686233525,-487.0002271,0.00016438,2]
[363346651,1748686233535,-407.08946938,0.00016438,2]
[363346652,1748686233546,-430.0,0.00016438,2]
[363346653,1748686233555,-430.0,0.00016438,2]
[363346654,1748686233565,-430.0,0.00016438,2]
[363346655,1748686233575,-430.0,0.00016438,2]
[363346656,1748686233585,-430.0,0.00016438,2]
[363346657,1748686233596,-350.0,0.00016438,2]
[363346658,1748686233606,-430.0,0.00016438,2]
[363346659,1748686233616,-430.0,0.00016438,2]
[363346660,1748686233626,-430.0,0.00016438,2]
[363346661,1748686233635,-430.0,0.00016438,2]
[363346662,1748686233645,-430.0,0.00016438,2]
[363346663,1748686233655,-430.0,0.00016438,2]
[363346664,1748686233664,-430.0,0.00016438,2]
[363346665,1748686233674,-430.0,0.00016438,2]
[363346666,1748686233684,-430.0,0.00016438,2]
[363346667,1748686233693,-430.0,0.00016438,2]
[363346668,1748686233703,-430.0,0.00016438,2]
[363346669,1748686233713,-430.0,0.00016438,2]
[363346670,1748686233723,-430.0,0.00016438,2]
[363346671,1748686233732,-430.0,0.00016438,2]
[363346672,1748686233742,-430.0,0.00016438,2]
[363346673,1748686233753,-430.0,0.00016438,2]
[363346674,1748686233763,-430.0,0.00016438,2]
[363346675,1748686233772,-430.0,0.00016438,2]
[363346676,1748686233783,-5684.98,0.00016438,2]
[363346677,1748686233793,-697.59,0.00016438,2]
[363346678,1748686233803,-430.0,0.00016438,2]
[363346679,1748686233813,-430.0,0.00016438,2]
[363346680,1748686233822,-430.0,0.00016438,2]
[363346681,1748686233831,-1509.53,0.00016438,2]
[363346682,1748686233841,-430.0,0.00016438,2]
[363346683,1748686233852,-430.0,0.00016438,2]
[363346684,1748686233862,-370.35426321,0.00016438,2]
[363346685,1748686233873,-288.24466508,0.00016438,2]
[363346686,1748686233890,-141.75533492,0.00016438,2]
[363346687,1748686233900,-430.0,0.00016438,2]
[363346688,1748686233910,-430.0,0.00016438,2]
[363346689,1748686233920,-430.0,0.00016438,2]
[363346690,1748686233930,-430.0,0.00016438,2]
[363346691,1748686233940,-285.83,0.00016438,2]
[363346692,1748686233950,-430.0,0.00016438,2]
[363346693,1748686233960,-430.0,0.00016438,2]
[363346694,1748686233970,-430.0,0.00016438,2]
[363346695,1748686233979,-496.10316095,0.00016438,2]
[363346696,1748686233989,-430.0,0.00016438,2]
[363346697,1748686234003,-1271.18,0.00016438,2]
[363346698,1748686234014,-430.0,0.00016438,2]
[363346699,1748686234024,-430.0,0.00016438,2]
[363346700,1748686234034,-430.0,0.00016438,2]
[363346701,1748686234044,-430.0,0.00016438,2]
[363346702,1748686234054,-430.0,0.00016438,2]
[363346703,1748686234063,-1335.13,0.00016438,2]
[363346704,1748686234074,-430.0,0.00016438,2]
[363346705,1748686234085,-1028.05,0.00016438,2]
[363346706,1748686234095,-430.0,0.00016438,2]
[363346707,1748686234106,-430.0,0.00016438,2]
[363346708,1748686234116,-565.65780778,0.00016438,2]
[363346709,1748686234128,-430.0,0.00016438,2]
[363346710,1748686234139,-430.0,0.00016438,2]
[363346711,1748686234149,-430.0,0.00016438,2]
[363346712,1748686234159,-430.0,0.00016438,2]
[363346713,1748686234170,-430.0,0.00016438,2]
[363346714,1748686234179,-430.0,0.00016438,2]
[363346715,1748686234191,-587.3,0.00016438,2]
[363346716,1748686234201,-420.60112534,0.00016438,2]
[363346717,1748686234212,-355.62257641,0.00016438,2]
[363346718,1748686234222,-430.0,0.00016438,2]
[363346719,1748686234232,-430.0,0.00016438,2]
[363346720,1748686234242,-430.0,0.00016438,2]
[363346721,1748686234254,-1497.69,0.00016438,2]
[363346722,1748686234264,-430.0,0.00016438,2]
[363346723,1748686234274,-451.68,0.00016438,2]
[363346724,1748686234285,-530.8,0.00016438,2]
[363346725,1748686234296,-430.0,0.00016438,2]
[363346726,1748686234306,-430.0,0.00016438,2]
[363346727,1748686234316,-430.0,0.00016438,2]
[363346728,1748686234328,-430.0,0.00016438,2]
[363346729,1748686234338,-430.0,0.00016438,2]
[363346730,1748686234348,-430.0,0.00016438,2]
[363346731,1748686234358,-430.0,0.00016438,2]
[363346732,1748686234368,-300.0,0.00016438,2]
[363346733,1748686234378,-301.72768799,0.00016438,2]
[363346734,1748686234387,-430.0,0.00016438,2]
[363346735,1748686234398,-430.0,0.00016438,2]
[363346736,1748686234410,-450.0,0.00016438,2]
[363346737,1748686234420,-430.0,0.00016438,2]
[363346738,1748686234430,-430.0,0.00016438,2]
[363346739,1748686234440,-430.0,0.00016438,2]
[363346740,1748686234450,-430.0,0.00016438,2]
[363346741,1748686234459,-430.0,0.00016438,2]
[363346742,1748686234469,-430.0,0.00016438,2]
[363346743,1748686234479,-430.0,0.00016438,2]
[363346744,1748686234489,-450.0,0.00016438,2]
[363346745,1748686234500,-461.43,0.00016438,2]
[363346746,1748686234510,-430.0,0.00016438,2]
[363346747,1748686234521,-530.0,0.00016438,2]
[363346748,1748686234530,-430.0,0.00016438,2]
[363346749,1748686234540,-430.0,0.00016438,2]
[363346750,1748686234549,-430.0,0.00016438,2]
[363346751,1748686234559,-401.06920622,0.00016438,2]
[363346752,1748686234569,-552.52,0.00016438,2]
[363346753,1748686234578,-430.0,0.00016438,2]
[363346754,1748686234587,-558.16197052,0.00016438,2]
[363346755,1748686234597,-294.29869052,0.00016438,2]
[363346756,1748686234606,-519.59724508,0.00016438,2]
[363346757,1748686234616,-400.0,0.00016438,2]
[363346758,1748686234625,-430.0,0.00016438,2]
[363346759,1748686234634,-301.76805248,0.00016438,2]
[363346760,1748686234643,-561.02,0.00016438,2]
[363346761,1748686234652,-430.0,0.00016438,2]
[363346762,1748686234662,-436.69522882,0.00016438,2]
[363346763,1748686234672,-430.0,0.00016438,2]
[363346764,1748686234682,-403.95730189,0.00016438,2]
[363346765,1748686234691,-430.0,0.00016438,2]
[363346766,1748686234700,-430.0,0.00016438,2]
[363346767,1748686234710,-430.0,0.00016438,2]
[363346768,1748686234880,-483.81,0.00016438,2]
[363346769,1748686234892,-430.0,0.00016438,2]
[363346770,1748686234900,-580.66,0.00016438,2]
[363346771,1748686234910,-500.0,0.00016438,2]
[363346772,1748686234920,-152.0,0.00016543,2]
[363346773,1748686234929,-430.0,0.00016712,2]
[363346774,1748686234939,-430.0,0.00016712,2]
[363346775,1748686234948,-430.0,0.00016712,2]
[363346776,1748686234958,-430.0,0.00016712,2]
[363346777,1748686234967,-430.0,0.00016712,2]
[363346778,1748686234976,-430.0,0.00016712,2]
[363346779,1748686234986,-430.0,0.00016712,2]
[363346780,1748686234996,-510.0,0.00016712,2]
[363346781,1748686235006,-472.10452465,0.00016712,2]
[363346782,1748686235016,-430.0,0.00016712,2]
[363346783,1748686235025,-430.0,0.00016712,2]
[363346784,1748686235035,-430.0,0.00016712,2]
[363346785,1748686235045,-430.0,0.00016712,2]
[363346786,1748686235055,-430.0,0.00016712,2]
[363346787,1748686235064,-430.0,0.00016712,2]
[363346788,1748686235073,-223.870631,0.00016712,2]
[363346789,1748686235083,-430.0,0.00016712,2]
[363346790,1748686235093,-430.0,0.00016712,2]
[363346791,1748686235103,-443.92716718,0.00016712,2]
[363346792,1748686235114,-430.0,0.00016712,2]
[363346793,1748686235125,-450.0,0.00016712,2]
[363346794,1748686235139,-430.0,0.00016712,2]
[363346795,1748686235148,-430.0,0.00016712,2]
[363346796,1748686235158,-430.0,0.00016712,2]
[363346797,1748686235168,-430.0,0.00016712,2]
[363346798,1748686235178,-430.0,0.00016712,2]
[363346799,1748686235188,-430.0,0.00016712,2]
[363346800,1748686235204,-927.97,0.00016712,2]
[363346801,1748686235224,-422.52167206,0.00016712,2]
[363346802,1748686235234,-430.0,0.00016712,2]
[363346803,1748686235247,-430.0,0.00016712,2]
[363346804,1748686235258,-430.0,0.00016712,2]
[363346805,1748686235268,-430.0,0.00016712,2]
[363346806,1748686235279,-430.0,0.00016712,2]
[363346807,1748686235290,-430.0,0.00016712,2]
[363346808,1748686235301,-430.0,0.00016712,2]
[363346809,1748686235311,-373.16149818,0.00016712,2]
[363346810,1748686235321,-430.0,0.00016712,2]
[363346811,1748686235331,-5684.98,0.00016712,2]
[363346812,1748686235341,-697.59,0.00016712,2]
[363346813,1748686235350,-452.56514672,0.00016712,2]
[363346814,1748686235360,-430.0,0.00016712,2]
[363346815,1748686235370,-1509.53,0.00016712,2]
[363346816,1748686235379,-430.0,0.00016712,2]
[363346817,1748686235389,-430.0,0.00016712,2]
[363346818,1748686235399,-430.0,0.00016712,2]
[363346819,1748686235409,-430.0,0.00016712,2]
[363346820,1748686235420,-431.39593358,0.00016712,2]
[363346821,1748686235429,-1271.18,0.00016712,2]
[363346822,1748686235439,-214.94,0.00016712,2]
[363346823,1748686235448,-1335.13,0.00016712,2]
[363346824,1748686235458,-503.26608209,0.00016712,2]
[363346825,1748686235468,-1028.05,0.00016712,2]
[363346826,1748686235477,-430.0,0.00016712,2]
[363346827,1748686235487,-315.06,0.00016712,2]
[363346828,1748686235497,-430.0,0.00016712,2]
[363346829,1748686235506,-430.0,0.00016712,2]
[363346830,1748686235516,-430.0,0.00016712,2]
[363346831,1748686235526,-430.0,0.00016712,2]
[363346832,1748686235536,-430.0,0.00016712,2]
[363346833,1748686235546,-1497.69,0.00016712,2]
[363346834,1748686235555,-530.8,0.00016712,2]
[363346835,1748686235564,-430.0,0.00016712,2]
[363346836,1748686235573,-333.39050248,0.00016712,2]
[363346837,1748686235583,-430.0,0.00016712,2]
[363346838,1748686235594,-430.0,0.00016712,2]
[363346839,1748686235603,-430.0,0.00016712,2]
[363346840,1748686235612,-430.0,0.00016712,2]
[363346841,1748686235622,-461.43,0.00016712,2]
[363346842,1748686235632,-430.0,0.00016712,2]
[363346843,1748686235641,-430.0,0.00016712,2]
[363346844,1748686235651,-552.52,0.00016712,2]
[363346845,1748686235660,-430.0,0.00016712,2]
[363346846,1748686235670,-430.0,0.00016712,2]
[363346847,1748686235679,-430.0,0.00016712,2]
[363346848,1748686235689,-430.0,0.00016712,2]
[363346849,1748686235697,-580.66,0.00016712,2]
[363346850,1748686235707,-211.41056482,0.00016712,2]
[363346851,1748686235716,-475.52,0.00016766,2]
[363346852,1748686235726,-562.98,0.00016766,2]
[363346853,1748686235735,-978.53,0.00016766,2]
[363346854,1748686235746,-430.0,0.00016766,2]
[363346855,1748686235755,-1311.93931909,0.00016883,2]
[363346856,1748686235765,-430.0,0.00016899,2]
[363346857,1748686235774,-430.0,0.00016899,2]
[363346858,1748686235784,-430.0,0.00016899,2]
[363346859,1748686235793,-400.0,0.00016899,2]
[363346860,1748686235803,-430.0,0.00016899,2]
[363346861,1748686235813,-430.0,0.00016899,2]
[363346862,1748686235822,-430.0,0.00016899,2]
[363346863,1748686235832,-400.0,0.00016899,2]
[363346864,1748686235841,-430.0,0.00016899,2]
[363346865,1748686235850,-430.0,0.00016899,2]
[363346866,1748686235859,-430.0,0.00016899,2]
[363346867,1748686235869,-500.0,0.00016899,2]
[363346868,1748686235878,-430.0,0.00016899,2]
[363346869,1748686235888,-430.0,0.00016899,2]
[363346870,1748686235897,-430.0,0.00016899,2]
[363346871,1748686235907,-430.0,0.00016899,2]
[363346872,1748686235917,-430.0,0.00016899,2]
[363346873,1748686235926,-430.0,0.00016899,2]
[363346874,1748686235936,-430.0,0.00016899,2]
[363346875,1748686235946,-436.47374498,0.00016899,2]
[363346876,1748686235955,-430.0,0.00016899,2]
[363346877,1748686235965,-430.0,0.00016899,2]
[363346878,1748686235975,-430.0,0.00016899,2]
[363346879,1748686235985,-430.0,0.00016899,2]
[363346880,1748686235997,-447.08089917,0.00016899,2]
[363346881,1748686236007,-430.0,0.00016899,2]
[363346882,1748686236016,-430.0,0.00016899,2]
[363346883,1748686236025,-163.44205103,0.00016899,2]
[363346884,1748686236035,-430.0,0.00016899,2]
[363346885,1748686236044,-430.0,0.00016899,2]
[363346886,1748686236053,-430.0,0.00016899,2]
[363346887,1748686236063,-647.14028984,0.00016919,2]
[363346888,1748686236072,-500.0,0.00016919,2]
[363346889,1748686236081,-500.0,0.00016919,2]
[363346890,1748686236090,-416.55117536,0.00016919,2]
[363346891,1748686236100,-500.0,0.00016919,2]
[363346892,1748686236109,-500.0,0.00016919,2]
[363346893,1748686236119,-500.0,0.00016919,2]
[363346894,1748686236129,-500.0,0.00016919,2]
[363346895,1748686236141,-500.0,0.00016919,2]
[363346896,1748686236150,-500.0,0.00016919,2]
[363346897,1748686236160,-400.0,0.00016919,2]
[363346898,1748686236171,-500.0,0.00016919,2]
[363346899,1748686236181,-254.4096757,0.00016919,2]
[363346900,1748686236191,-500.0,0.00016919,2]
[363346901,1748686236200,-500.0,0.00016919,2]
[363346902,1748686236214,-260.24884142,0.00016919,2]
[363346903,1748686236225,-10000.0,0.0001692,2]
[363346904,1748686236235,-430.0,0.00016986,2]
[363346905,1748686236247,-536.79,0.00016986,2]
[363346906,1748686236257,-290.0,0.00016986,2]
[363346907,1748686236266,-430.0,0.00016986,2]
[363346908,1748686236276,-472.01067594,0.00016986,2]
[363346909,1748686236286,-927.97,0.00016986,2]
[363346910,1748686236296,-430.0,0.00016986,2]
[363346911,1748686236306,-430.0,0.00016986,2]
[363346912,1748686236315,-351.02,0.00016986,2]
[363346913,1748686236325,-430.0,0.00016986,2]
[363346914,1748686236334,-430.0,0.00016986,2]
[363346915,1748686236344,-5684.98,0.00016986,2]
[363346916,1748686236354,-697.59,0.00016986,2]
[363346917,1748686236364,-430.0,0.00016986,2]
[363346918,1748686236374,-1509.53,0.00016986,2]
[363346919,1748686236384,-430.0,0.00016986,2]
[363346920,1748686236393,-430.0,0.00016986,2]
[363346921,1748686236403,-1271.18,0.00016986,2]
[363346922,1748686236413,-1335.13,0.00016986,2]
[363346923,1748686236423,-1028.05,0.00016986,2]
[363346924,1748686236432,-430.0,0.00016986,2]
[363346925,1748686236443,-430.0,0.00016986,2]
[363346926,1748686236453,-430.0,0.00016986,2]
[363346927,1748686236463,-430.0,0.00016986,2]
[363346928,1748686236472,-494.09,0.00016986,2]
[363346929,1748686236481,-1497.69,0.00016986,2]
[363346930,1748686236491,-530.8,0.00016986,2]
[363346931,1748686236503,-430.0,0.00016986,2]
[363346932,1748686236513,-430.0,0.00016986,2]
[363346933,1748686236522,-430.0,0.00016986,2]
[363346934,1748686236533,-430.0,0.00016986,2]
[363346935,1748686236542,-430.0,0.00016986,2]
[363346936,1748686236552,-461.43,0.00016986,2]
[363346937,1748686236562,-430.0,0.00016986,2]
[363346938,1748686236572,-430.0,0.00016986,2]
[363346939,1748686236581,-552.52,0.00016986,2]
[363346940,1748686236591,-430.0,0.00016986,2]
[363346941,1748686236601,-364.57132188,0.00016986,2]
[363346942,1748686236610,-580.66,0.00016986,2]
[363346943,1748686236620,-562.98,0.0001704,2]
[363346944,1748686236630,-978.53,0.0001704,2]
[363346945,1748686236639,-430.0,0.0001704,2]
[363346946,1748686236648,-2338.5526297,0.00017061,2]
[363346947,1748686236658,-430.0,0.00017173,2]
[363346948,1748686236667,-203.86889505,0.00017173,2]
[363346949,1748686236676,-430.0,0.00017173,2]
[363346950,1748686236685,-442.57,0.00017173,2]
[363346951,1748686236695,-430.0,0.00017173,2]
[363346952,1748686236704,-494.55,0.00017173,2]
[363346953,1748686236714,-430.0,0.00017173,2]
[363346954,1748686236723,-430.0,0.00017173,2]
[363346955,1748686236733,-430.0,0.00017173,2]
[363346956,1748686236743,-430.0,0.00017173,2]
[363346957,1748686236754,-430.0,0.00017173,2]
[363346958,1748686236763,-430.0,0.00017173,2]
[363346959,1748686236773,-430.0,0.00017173,2]
[363346960,1748686236782,-430.0,0.00017173,2]
[363346961,1748686236792,-430.0,0.00017173,2]
[363346962,1748686236801,-430.0,0.00017173,2]
[363346963,1748686236811,-430.0,0.00017173,2]
[363346964,1748686236820,-430.0,0.0001726,2]
[363346965,1748686236829,-430.0,0.0001726,2]
[363346966,1748686236838,-927.97,0.0001726,2]
[363346967,1748686236847,-430.0,0.0001726,2]
[363346968,1748686236857,-553.84,0.0001726,2]
[363346969,1748686236867,-430.0,0.0001726,2]
[363346970,1748686236876,-5684.98,0.0001726,2]
[363346971,1748686236885,-697.59,0.0001726,2]
[363346972,1748686236894,-174.28,0.0001726,2]
[363346973,1748686236903,-1509.53,0.0001726,2]
[363346974,1748686236913,-430.0,0.0001726,2]
[363346975,1748686236919,-200.72,0.0001726,2]
[363346976,1748686236926,-1271.18,0.0001726,2]
[363346977,1748686236932,-1335.13,0.0001726,2]
[363346978,1748686236941,-1028.05,0.0001726,2]
[363346979,1748686236951,-430.0,0.0001726,2]
[363346980,1748686236960,-430.0,0.0001726,2]
[363346981,1748686236970,-430.0,0.0001726,2]
[363346982,1748686236979,-1497.69,0.0001726,2]
[363346983,1748686236988,-530.8,0.0001726,2]
[363346984,1748686237000,-430.0,0.0001726,2]
[363346985,1748686237010,-430.0,0.0001726,2]
[363346986,1748686237019,-430.0,0.0001726,2]
[363346987,1748686237029,-528.73,0.0001726,2]
[363346988,1748686237039,-430.0,0.0001726,2]
[363346989,1748686237048,-461.43,0.0001726,2]
[363346990,1748686237057,-430.0,0.0001726,2]
[363346991,1748686237067,-430.0,0.0001726,2]
[363346992,1748686237076,-552.52,0.0001726,2]
[363346993,1748686237086,-430.0,0.0001726,2]
[363346994,1748686237095,-580.66,0.0001726,2]
[363346995,1748686237105,-420.0,0.00017278,2]
[363346996,1748686237114,-1412.78216153,0.00017289,2]
[363346997,1748686237124,-562.98,0.00017314,2]
[363346998,1748686237136,-978.53,0.00017314,2]
[363346999,1748686237146,-430.0,0.00017314,2]
[363347000,1748686237155,-500.0,0.00017444,2]
[363347001,1748686237165,-501.18617219,0.00017444,2]
[363347002,1748686237176,-500.0,0.00017444,2]
[363347003,1748686237185,-503.54978116,0.00017444,2]
[363347004,1748686237195,-430.0,0.00017447,2]
[363347005,1748686237204,-430.0,0.00017447,2]
[363347006,1748686237215,-430.0,0.00017447,2]
[363347007,1748686237225,-515.55,0.00017447,2]
[363347008,1748686237234,-430.0,0.00017447,2]
[363347009,1748686237243,-435.92375421,0.00017447,2]
[363347010,1748686237253,-430.0,0.00017447,2]
[363347011,1748686237263,-430.0,0.00017447,2]
[363347012,1748686237272,-430.0,0.00017447,2]
[363347013,1748686237282,-430.0,0.00017447,2]
[363347014,1748686237291,-430.0,0.00017447,2]
[363347015,1748686237299,-500.0,0.00017478,2]
[363347016,1748686237307,-500.0,0.00017478,2]
[363347017,1748686237316,-500.79122663,0.00017478,2]
[363347018,1748686237325,-500.0,0.00017478,2]
[363347019,1748686237335,-500.0,0.00017478,2]
[363347020,1748686237344,-430.0,0.00017534,2]
[363347021,1748686237354,-927.97,0.00017534,2]
[363347022,1748686237363,-430.0,0.00017534,2]
[363347023,1748686237372,-5684.98,0.00017534,2]
[363347024,1748686237382,-697.59,0.00017534,2]
[363347025,1748686237391,-1509.53,0.00017534,2]
[363347026,1748686237401,-430.0,0.00017534,2]
[363347027,1748686237410,-1271.18,0.00017534,2]
[363347028,1748686237419,-1335.13,0.00017534,2]
[363347029,1748686237429,-1028.05,0.00017534,2]
[363347030,1748686237438,-430.0,0.00017534,2]